lending/lending_fUSD_20251021
["ID","MTS","AMOUNT","RATE_DAILY","PERIOD"]
[391950887,1761028237591,-831.76147773,0.00014996,2]
[391950896,1761028237721,-11923.8552268,0.00014996,2]
[391950897,1761028237734,-6765.27806536,0.00014996,2]
[391950918,1761028239663,-262.632924,0.00014996,2]
[391950919,1761028239679,-50642.65903444,0.00014996,2]
[391950920,1761028239689,-500.0,0.00014999,2]
[391950921,1761028239701,-2317.867954,0.00014999,2]
[391950922,1761028239711,-500.0,0.00014999,2]
[391950923,1761028239722,-335722.02422935,0.00015,2]
[391950924,1761028239732,-2500.0,0.00015,2]
[391950925,1761028239741,-863.780025,0.00015,2]
[391950926,1761028239751,-197.085649,0.00015,2]
[391950927,1761028239761,-713.007043,0.00015,2]
[391950928,1761028239771,-196.757958,0.00015,2]
[391950929,1761028239781,-2561.684748,0.00015,2]
[391950930,1761028239791,-204.067054,0.00015,2]
[391950931,1761028239801,-121786.14850864,0.00015,2]
[391950932,1761028239814,-876.22805,0.00015,2]
[391950933,1761028239824,-876.22806,0.00015,2]
[391950934,1761028239834,-500.0,0.00015,2]
[391950935,1761028239843,-500.0,0.00015,2]
[391950936,1761028239853,-500.0,0.00015,2]
[391950937,1761028239863,-500.0,0.00015,2]
[391950938,1761028239873,-150.0,0.00015,2]
[391950939,1761028239883,-153.42296191,0.00015,2]
[391950940,1761028239892,-150.0,0.00015,2]
[391950941,1761028239901,-150.0,0.00015,2]
[391950942,1761028239911,-150.0,0.00015,2]
[391950943,1761028239921,-500.0,0.00015,2]
[391950944,1761028240116,-500.0,0.00015,2]
[391950945,1761028240126,-168.0,0.00015031,2]
[391950946,1761028240136,-168.0,0.00015039,2]
[391950947,1761028240149,-500.0,0.00015055,2]
[391950948,1761028240158,-500.0,0.00015055,2]
[391950949,1761028240168,-550.0,0.00015055,2]
[391950950,1761028240177,-500.0,0.00015055,2]
[391950951,1761028240186,-150.0,0.00015055,2]
[391950952,1761028240200,-500.0,0.00015055,2]
[391950953,1761028240209,-500.0,0.00015055,2]
[391950954,1761028240218,-2208.0993,0.00015068,2]
[391950955,1761028240228,-165.03,0.00015083,2]
[391950956,1761028240237,-876.22806,0.0001509,2]
[391950957,1761028240247,-166.03617143,0.0001511,2]
[391950958,1761028240256,-500.0,0.0001511,2]
[391950959,1761028240265,-500.0,0.0001511,2]
[391950960,1761028240274,-200.0,0.0001511,2]
[391950961,1761028240284,-500.0,0.0001511,2]
[391950962,1761028240294,-500.0,0.0001511,2]
[391950963,1761028240304,-661.21,0.00015156,2]
[391950964,1761028240313,-2751.0,0.00015156,2]
[391950965,1761028240323,-6945.1,0.00015156,2]
[391950966,1761028240332,-150.0,0.00015164,2]
[391950967,1761028240342,-500.0,0.00015164,2]
[391950968,1761028240353,-500.0,0.00015164,2]
[391950969,1761028240363,-500.0,0.00015164,2]
[391950970,1761028240373,-1036.68,0.00015165,2]
[391950971,1761028240386,-500.0,0.00015219,2]
[391950972,1761028240395,-500.0,0.00015219,2]
[391950973,1761028240404,-500.0,0.00015219,2]
[391950974,1761028240414,-876.22806,0.0001522,2]
[391950975,1761028240424,-168.0,0.00015255,2]
[391950976,1761028240433,-200.0,0.00015274,2]
[391950977,1761028240444,-500.0,0.00015274,2]
[391950978,1761028240455,-500.0,0.00015274,2]
[391950979,1761028240464,-500.0,0.00015329,2]
[391950980,1761028240474,-500.0,0.00015329,2]
[391950981,1761028240483,-876.22805,0.0001535,2]
[391950982,1761028240493,-317.48195695,0.00015384,2]
[391950983,1761028240502,-425.0457983,0.00015384,2]
[391950984,1761028240511,-168.0,0.00015392,2]
[391950985,1761028240520,-168.0,0.00015411,2]
[391950986,1761028240529,-161.93,0.00015628,2]
[391950987,1761028240539,-1000.0,0.00015652,2]
[391950988,1761028240548,-619.36424473,0.0001568,2]
[391950989,1761028240557,-501.04045004,0.0001568,2]
[391950990,1761028240567,-500.0,0.0001568,2]
[391950991,1761028240576,-500.0,0.0001568,2]
[391950992,1761028240585,-752.81,0.00015753,2]
[391950993,1761028240594,-153.04425634,0.000158,2]
[391950994,1761028240603,-150.0,0.000158,2]
[391950995,1761028240613,-168.0,0.00015823,2]
[391950996,1761028240622,-1036.68,0.00015854,2]
[391950997,1761028240632,-300.0,0.00015868,2]
[391950998,1761028240641,-250.0,0.00015868,2]
[391950999,1761028240650,-300.0,0.00015971,2]
[391951000,1761028240659,-300.0,0.00015971,2]
[391951001,1761028240669,-367.2620463,0.00015985,2]
[391951002,1761028240678,-300.0,0.00015985,2]
[391951003,1761028240688,-311.5155,0.00015985,2]
[391951004,1761028240699,-500.0,0.00016016,2]
[391951005,1761028240709,-2501.26222555,0.00016016,2]
[391951006,1761028240718,-150.83,0.0001606,2]
[391951007,1761028240727,-5000.0,0.000161,2]
[391951008,1761028240736,-154.085713,0.000161,2]
[391951009,1761028240755,-500.0,0.00016116,2]
[391951010,1761028240765,-863.780025,0.000162,5]
[391951011,1761028240774,-197.085649,0.000162,5]
[391951012,1761028240784,-222.010028,0.000162,5]
[391951013,1761028240794,-222.010028,0.000162,5]
[391951014,1761028240803,-713.007043,0.000162,5]
[391951015,1761028240813,-196.757958,0.000162,5]
[391951016,1761028240823,-2561.684748,0.000162,5]
[391951017,1761028240832,-5000.00543724,0.000162,5]
[391951018,1761028240842,-150.0,0.0001637,2]
[391951019,1761028240851,-500.0,0.00016438,2]
[391951020,1761028240861,-162.88,0.0001644,2]
[391951021,1761028240871,-500.0,0.00016493,2]
[391951022,1761028240882,-1036.68,0.00016544,2]
[391951023,1761028240892,-500.0,0.00016548,2]
[391951024,1761028240902,-277.35679052,0.00016568,2]
[391951025,1761028240912,-500.0,0.00016602,2]
[391951026,1761028240922,-500.0,0.00016657,2]
[391951027,1761028240932,-500.0,0.00016712,2]
[391951028,1761028240941,-5417.65830235,0.00016756,2]
[391951029,1761028240955,-250.0,0.00016759,2]
[391951030,1761028240965,-502.88602841,0.00016767,2]
[391951031,1761028240974,-6219.2519549,0.00016906,2]
[391951032,1761028240984,-16470.6240076,0.00016906,2]
[391951033,1761028240993,-150.0,0.0001701,2]
[391951034,1761028241003,-154.085709,0.00017106,2]
[391951035,1761028241013,-1852.42,0.00017106,2]
[391951036,1761028241022,-863.780025,0.00017138,5]
[391951037,1761028241032,-197.085649,0.00017138,5]
[391951038,1761028241041,-222.010028,0.00017138,5]
[391951039,1761028241051,-222.010028,0.00017138,5]
[391951040,1761028241060,-713.007043,0.00017138,5]
[391951041,1761028241070,-196.757958,0.00017138,5]
[391951042,1761028241079,-2561.684748,0.00017138,5]
[391951043,1761028241089,-1036.68,0.00017233,2]
[391951044,1761028241098,-1387.7026847,0.00017333,2]
[391951045,1761028241108,-3675.0929725,0.00017333,2]
[391951046,1761028241117,-161.93,0.00017364,2]
[391951047,1761028241130,-1000.0,0.00017391,2]
[391951048,1761028241141,-150.83,0.00017429,2]
[391951049,1761028241151,-165.03,0.00017597,2]
[391951050,1761028241161,-200.0,0.0001774,2]
[391951051,1761028241170,-1036.68,0.00017922,2]
[391951052,1761028241181,-863.780025,0.00018075,5]
[391951053,1761028241190,-197.085649,0.00018075,5]
[391951054,1761028241203,-222.010028,0.00018075,5]
[391951055,1761028241213,-222.010028,0.00018075,5]
[391951056,1761028241222,-713.007043,0.00018075,5]
[391951057,1761028241232,-196.757958,0.00018075,5]
[391951058,1761028241241,-2561.684748,0.00018075,5]
[391951059,1761028241251,-200.0,0.00018575,2]
[391951060,1761028241261,-1036.68,0.00018612,2]
[391951061,1761028241273,-172.96018879,0.000189,2]
[391951062,1761028241286,-4861.65365198,0.00018921,2]
[391951063,1761028241296,-5417.65830235,0.00018921,2]
[391951064,1761028241306,-499.49699022,0.00018973,2]
[391951065,1761028241315,-150.64,0.0001899,2]
[391951066,1761028241333,-244.13513169,0.0001899,2]
[391951067,1761028241349,-500.0,0.00018999,2]
[391951068,1761028241358,-531.56787894,0.00019,2]
[391951069,1761028241367,-206.72160681,0.00019,2]
[391951070,1761028241379,-105825.1073795,0.00019,2]
[391951071,1761028241389,-863.780025,0.00019012,5]
[391951072,1761028241398,-197.085649,0.00019012,5]
[391951073,1761028241407,-222.010028,0.00019012,5]
[391951074,1761028241418,-222.010028,0.00019012,5]
[391951075,1761028241427,-713.007043,0.00019012,5]
[391951076,1761028241437,-196.757958,0.00019012,5]
[391951077,1761028241448,-2561.684748,0.00019012,5]
[391951078,1761028241458,-161.93,0.00019101,2]
[391951079,1761028241467,-1000.0,0.0001913,2]
[391951080,1761028241476,-151.93284732,0.00019178,2]
[391951081,1761028241486,-1036.68,0.00019301,2]
[391951082,1761028241495,-264.9915207,0.00019318,2]
[391951083,1761028241505,-170.76065944,0.00019481,2]
[391951084,1761028241515,-200.0,0.00019532,2]
[391951085,1761028241524,-666.0,0.00019711,3]
[391951086,1761028241538,-863.780025,0.00019825,2]
[391951087,1761028241547,-197.085649,0.00019825,2]
[391951088,1761028241557,-713.007043,0.00019825,2]
[391951089,1761028241567,-196.757958,0.00019825,2]
[391951090,1761028241576,-2561.684748,0.00019825,2]
[391951091,1761028241586,-863.780025,0.0001995,5]
[391951092,1761028241596,-197.085649,0.0001995,5]
[391951093,1761028241605,-222.010028,0.0001995,5]
[391951094,1761028241615,-222.010028,0.0001995,5]
[391951095,1761028241624,-713.007043,0.0001995,5]
[391951096,1761028241634,-196.757958,0.0001995,5]
[391951097,1761028241643,-2561.684748,0.0001995,5]
[391951098,1761028241652,-1036.68,0.0001999,2]
[391951099,1761028241662,-165.03,0.00020111,2]
[391951100,1761028241673,-232.69,0.00020187,2]
[391951101,1761028241682,-151.0,0.00020548,7]
[391951102,1761028241693,-252.001449,0.00020548,7]
[391951103,1761028241703,-1036.68,0.0002068,2]
[391951104,1761028241713,-161.93,0.00020837,2]
[391951105,1761028241722,-1221.0,0.00020859,2]
[391951106,1761028241732,-1000.0,0.00020869,2]
[391951107,1761028241741,-4079.42116287,0.00021,2]
[391951108,1761028241751,-500.0,0.00021075,2]
[391951109,1761028241761,-4861.65365198,0.00021087,2]
[391951110,1761028241770,-5417.65830235,0.00021087,2]
[391951111,1761028241780,-1000.0,0.00021136,4]
[391951112,1761028241790,-1036.68,0.00021369,2]
[391951113,1761028241799,-500.0,0.00021917,2]
[391951114,1761028241809,-500.0,0.00021917,2]
[391951115,1761028241818,-500.0,0.00021917,2]
[391951116,1761028241830,-334.53805869,0.00021917,2]
[391951117,1761028241840,-5000.0,0.00021918,2]
[391951118,1761028241850,-151.0,0.00021918,7]
[391951119,1761028241859,-151.0,0.00021918,7]
[391951120,1761028241869,-265.47628003,0.00021918,7]
[391951121,1761028241878,-752.81,0.00022054,2]
[391951122,1761028241888,-1036.68,0.00022058,2]
[391951123,1761028241898,-165.03,0.00022625,2]
[391951124,1761028241908,-1036.68,0.00022748,2]
[391951125,1761028241918,-150.0,0.00022858,2]
[391951126,1761028241932,-150.0,0.00022858,2]
[391951127,1761028241943,-150.0,0.00022858,2]
[391951128,1761028241955,-150.0,0.00022858,2]
[391951129,1761028241964,-150.0,0.00022858,2]
[391951130,1761028241974,-150.0,0.00022858,2]
[391951131,1761028241983,-150.0,0.00022858,2]
[391951132,1761028241992,-150.0,0.00022858,2]
[391951133,1761028242002,-150.0,0.00022858,2]
[391951134,1761028242012,-150.0,0.00022858,2]
[391951135,1761028242022,-150.0,0.00023016,4]
[391951136,1761028242031,-150.0,0.00023175,4]
[391951137,1761028242041,-4861.65365198,0.00023252,2]
[391951138,1761028242051,-5417.65830235,0.00023252,2]
[391951139,1761028242061,-151.0,0.00023288,7]
[391951140,1761028242070,-151.0,0.00023288,7]
[391951141,1761028242080,-151.0,0.00023288,7]
[391951142,1761028242090,-151.0,0.00023288,7]
[391951143,1761028242100,-151.0,0.00023288,7]
[391951144,1761028242109,-191.866418,0.00023288,7]
[391951145,1761028242119,-151.0,0.00023288,7]
[391951146,1761028242129,-270.608159,0.00023288,7]
[391951147,1761028242139,-152.730717,0.00023288,7]
[391951148,1761028242149,-151.0,0.00023288,7]
[391951149,1761028242158,-154.272573,0.00023288,7]
[391951150,1761028242168,-160.344046,0.00023288,7]
[391951151,1761028242178,-152.733342,0.00023288,7]
[391951152,1761028242188,-164.715855,0.00023288,7]
[391951153,1761028242198,-164.715855,0.00023288,7]
[391951154,1761028242208,-164.715855,0.00023288,7]
[391951155,1761028242217,-164.715855,0.00023288,7]
[391951156,1761028242227,-164.715855,0.00023288,7]
[391951157,1761028242237,-164.715855,0.00023288,7]
[391951158,1761028242246,-164.715855,0.00023288,7]
[391951159,1761028242255,-164.715855,0.00023288,7]
[391951160,1761028242265,-164.715855,0.00023288,7]
[391951161,1761028242275,-164.715855,0.00023288,7]
[391951163,1761028242434,-164.715855,0.00023288,7]
[391951165,1761028242443,-164.715855,0.00023288,7]
[391951166,1761028242455,-164.715855,0.00023288,7]
[391951167,1761028242465,-164.715855,0.00023288,7]
[391951168,1761028242473,-151.0,0.00023288,7]
[391951169,1761028242482,-164.715855,0.00023288,7]
[391951170,1761028242491,-153.724139,0.00023288,7]
[391951171,1761028242500,-164.715855,0.00023288,7]
[391951172,1761028242510,-151.0,0.00023288,7]
[391951173,1761028242519,-151.0,0.00023288,7]
[391951174,1761028242528,-151.0,0.00023288,7]
[391951176,1761028242538,-155.291795,0.00023288,7]
[391951177,1761028242547,-151.0,0.00023288,7]
[391951178,1761028242556,-301.99999915,0.00023288,7]
[391951180,1761028242566,-182.14444,0.00023288,7]
[391951181,1761028242575,-154.239561,0.00023288,7]
[391951183,1761028242584,-151.0,0.00023288,7]
[391951185,1761028242593,-151.0,0.00023288,7]
[391951186,1761028242603,-151.0,0.00023288,7]
[391951187,1761028242612,-151.0,0.00023288,7]
[391951188,1761028242621,-151.0,0.00023288,7]
[391951189,1761028242631,-151.0,0.00023288,7]
[391951190,1761028242640,-151.0,0.00023288,7]
[391951191,1761028242654,-151.0,0.00023288,7]
[391951192,1761028242663,-151.0,0.00023288,7]
[391951193,1761028242672,-238.615675,0.00023288,7]
[391951194,1761028242683,-151.0,0.00023288,7]
[391951195,1761028242692,-151.0,0.00023288,7]
[391951196,1761028242702,-151.0,0.00023288,7]
[391951197,1761028242711,-151.0,0.00023288,7]
[391951198,1761028242720,-151.0,0.00023288,7]
[391951199,1761028242730,-151.0,0.00023288,7]
[391951200,1761028242739,-151.0,0.00023288,7]
[391951201,1761028242749,-154.393912,0.00023288,7]
[391951202,1761028242758,-153.962488,0.00023288,7]
[391951203,1761028242768,-151.0,0.00023288,7]
[391951204,1761028242778,-152.377213,0.00023288,7]
[391951205,1761028242787,-151.0,0.00023288,7]
[391951206,1761028242797,-151.0,0.00023288,7]
[391951207,1761028242806,-151.0,0.00023288,7]
[391951208,1761028242816,-151.0,0.00023288,7]
[391951209,1761028242826,-151.0,0.00023288,7]
[391951210,1761028242835,-151.0,0.00023288,7]
[391951211,1761028242844,-151.0,0.00023288,7]
[391951212,1761028242853,-157.444128,0.00023288,7]
[391951213,1761028242862,-151.0,0.00023288,7]
[391951214,1761028242871,-151.0,0.00023288,7]
[391951215,1761028242880,-151.0,0.00023288,7]
[391951216,1761028242889,-151.0,0.00023288,7]
[391951217,1761028242898,-151.0,0.00023288,7]
[391951218,1761028242907,-151.0,0.00023288,7]
[391951219,1761028242916,-151.0,0.00023288,7]
[391951220,1761028242925,-151.0,0.00023288,7]
[391951221,1761028242934,-151.0,0.00023288,7]
[391951222,1761028242943,-151.0,0.00023288,7]
[391951223,1761028242954,-151.0,0.00023288,7]
[391951224,1761028242963,-151.0,0.00023288,7]
[391951225,1761028242972,-151.0,0.00023288,7]
[391951226,1761028242981,-151.0,0.00023288,7]
[391951227,1761028242991,-151.0,0.00023288,7]
[391951228,1761028243000,-151.0,0.00023288,7]
[391951229,1761028243009,-167.624534,0.00023288,7]
[391951230,1761028243018,-151.0,0.00023288,7]
[391951231,1761028243027,-151.0,0.00023288,7]
[391951232,1761028243038,-151.0,0.00023288,7]
[391951233,1761028243047,-151.0,0.00023288,7]
[391951234,1761028243056,-151.0,0.00023288,7]
[391951235,1761028243065,-205.705232,0.00023288,7]
[391951236,1761028243075,-151.0,0.00023288,7]
[391951237,1761028243084,-172.028604,0.00023288,7]
[391951238,1761028243093,-151.0,0.00023288,7]
[391951239,1761028243102,-151.0,0.00023288,7]
[391951240,1761028243111,-151.0,0.00023288,7]
[391951241,1761028243120,-151.0,0.00023288,7]
[391951242,1761028243129,-151.0,0.00023288,7]
[391951243,1761028243139,-151.0,0.00023288,7]
[391951244,1761028243149,-151.0,0.00023288,7]
[391951245,1761028243158,-151.0,0.00023288,7]
[391951246,1761028243167,-151.0,0.00023288,7]
[391951247,1761028243176,-151.0,0.00023288,7]
[391951248,1761028243186,-151.0,0.00023288,7]
[391951249,1761028243195,-151.0,0.00023288,7]
[391951250,1761028243205,-188.0,0.00023288,7]
[391951251,1761028243214,-159.28944,0.00023288,7]
[391951252,1761028243223,-161.101757,0.00023288,7]
[391951254,1761028243233,-151.0,0.00023288,7]
[391951257,1761028243242,-151.0,0.00023288,7]
[391951259,1761028243251,-184.825038,0.00023288,7]
[391951261,1761028243260,-369.078572,0.00023288,7]
[391951262,1761028243269,-369.078572,0.00023288,7]
[391951264,1761028243278,-369.078572,0.00023288,7]
[391951266,1761028243287,-369.078572,0.00023288,7]
[391951268,1761028243297,-369.078572,0.00023288,7]
[391951269,1761028243307,-369.078572,0.00023288,7]
[391951270,1761028243316,-369.078572,0.00023288,7]
[391951271,1761028243325,-369.078572,0.00023288,7]
[391951272,1761028243335,-369.078572,0.00023288,7]
[391951273,1761028243344,-369.078572,0.00023288,7]
[391951274,1761028243354,-369.078572,0.00023288,7]
[391951275,1761028243363,-369.078572,0.00023288,7]
[391951276,1761028243373,-369.078572,0.00023288,7]
[391951277,1761028243394,-369.078572,0.00023288,7]
[391951278,1761028243412,-369.078572,0.00023288,7]
[391951279,1761028243427,-369.078572,0.00023288,7]
[391951280,1761028243439,-369.078572,0.00023288,7]
[391951281,1761028243455,-369.078572,0.00023288,7]
[391951282,1761028243470,-369.078572,0.00023288,7]
[391951283,1761028243486,-369.078574,0.00023288,7]
[391951284,1761028243501,-151.0,0.00023288,7]
[391951285,1761028243514,-156.19009,0.00023288,7]
[391951286,1761028243526,-155.742277,0.00023288,7]
[391951287,1761028243546,-151.0,0.00023288,7]
[391951288,1761028243562,-152.900871,0.00023288,7]
[391951289,1761028243577,-151.0,0.00023288,7]
[391951290,1761028243591,-151.0,0.00023288,7]
[391951291,1761028243606,-151.0,0.00023288,7]
[391951292,1761028243619,-151.0,0.00023288,7]
[391951293,1761028243634,-232.613799,0.00023288,7]
[391951294,1761028243649,-151.0,0.00023288,7]
[391951295,1761028243662,-153.764301,0.00023288,7]
[391951296,1761028243676,-164.425114,0.00023288,7]
[391951297,1761028243690,-165.293165,0.00023288,7]
[391951298,1761028243707,-151.0,0.00023288,7]
[391951299,1761028243720,-151.0,0.00023288,7]
[391951300,1761028243734,-151.0,0.00023288,7]
[391951301,1761028243745,-151.0,0.00023288,7]
[391951302,1761028243756,-151.0,0.00023288,7]
[391951303,1761028243774,-151.0,0.00023288,7]
[391951304,1761028243784,-151.0,0.00023288,7]
[391951305,1761028243795,-151.0,0.00023288,7]
[391951306,1761028243806,-151.0,0.00023288,7]
[391951307,1761028243823,-235.555738,0.00023288,7]
[391951308,1761028243837,-151.0,0.00023288,7]
[391951309,1761028243848,-151.0,0.00023288,7]
[391951310,1761028243861,-151.0,0.00023288,7]
[391951311,1761028243873,-155.361919,0.00023288,7]
[391951312,1761028243886,-151.0,0.00023288,7]
[391951313,1761028243898,-151.0,0.00023288,7]
[391951314,1761028243911,-151.0,0.00023288,7]
[391951315,1761028243923,-151.0,0.00023288,7]
[391951316,1761028243935,-151.0,0.00023288,7]
[391951317,1761028243947,-151.0,0.00023288,7]
[391951318,1761028243960,-151.0,0.00023288,7]
[391951319,1761028243974,-151.0,0.00023288,7]
[391951320,1761028243986,-151.0,0.00023288,7]
[391951321,1761028243998,-151.0,0.00023288,7]
[391951322,1761028244011,-151.0,0.00023288,7]
[391951323,1761028244025,-151.0,0.00023288,7]
[391951324,1761028244039,-151.0,0.00023288,7]
[391951325,1761028244051,-151.0,0.00023288,7]
[391951326,1761028244064,-209.559043,0.00023288,7]
[391951327,1761028244076,-151.0,0.00023288,7]
[391951328,1761028244087,-151.0,0.00023288,7]
[391951329,1761028244099,-151.0,0.00023288,7]
[391951330,1761028244111,-151.0,0.00023288,7]
[391951331,1761028244124,-151.0,0.00023288,7]
[391951332,1761028244135,-175.857142,0.00023288,7]
[391951333,1761028244148,-151.0,0.00023288,7]
[391951334,1761028244160,-271.101806,0.00023288,7]
[391951335,1761028244173,-151.0,0.00023288,7]
[391951336,1761028244185,-252.29798,0.00023288,7]
[391951337,1761028244197,-153.061831,0.00023288,7]
[391951338,1761028244209,-151.0,0.00023288,7]
[391951339,1761028244221,-238.45287,0.00023288,7]
[391951340,1761028244233,-162.809005,0.00023288,7]
[391951341,1761028244244,-162.809005,0.00023288,7]
[391951342,1761028244256,-162.809005,0.00023288,7]
[391951343,1761028244268,-162.809005,0.00023288,7]
[391951344,1761028244280,-162.809005,0.00023288,7]
[391951345,1761028244292,-162.809005,0.00023288,7]
[391951346,1761028244305,-162.809005,0.00023288,7]
[391951347,1761028244316,-162.809005,0.00023288,7]
[391951348,1761028244328,-162.809005,0.00023288,7]
[391951349,1761028244340,-162.809005,0.00023288,7]
[391951350,1761028244352,-162.809005,0.00023288,7]
[391951351,1761028244363,-162.809005,0.00023288,7]
[391951352,1761028244375,-162.809005,0.00023288,7]
[391951353,1761028244392,-162.809005,0.00023288,7]
[391951354,1761028244404,-162.809005,0.00023288,7]
[391951355,1761028244416,-162.809005,0.00023288,7]
[391951356,1761028244429,-162.809005,0.00023288,7]
[391951357,1761028244441,-162.809005,0.00023288,7]
[391951358,1761028244454,-162.809005,0.00023288,7]
[391951359,1761028244467,-162.809005,0.00023288,7]
[391951360,1761028244479,-151.0,0.00023288,7]
[391951361,1761028244491,-151.0,0.00023288,7]
[391951362,1761028244503,-151.0,0.00023288,7]
[391951363,1761028244515,-151.0,0.00023288,7]
[391951364,1761028244527,-151.0,0.00023288,7]
[391951365,1761028244539,-151.0,0.00023288,7]
[391951366,1761028244551,-151.0,0.00023288,7]
[391951367,1761028244563,-151.0,0.00023288,7]
[391951368,1761028244575,-151.0,0.00023288,7]
[391951369,1761028244588,-151.00000032,0.00023288,7]
[391951370,1761028244601,-151.0,0.00023288,7]
[391951371,1761028244615,-151.0,0.00023288,7]
[391951372,1761028244629,-151.0,0.00023288,7]
[391951373,1761028244639,-172.25,0.00023288,2]
[391951374,1761028244648,-150.0,0.00023334,4]
[391951375,1761028244658,-150.0,0.00023365,4]
[391951376,1761028244667,-159.479165,0.00023424,28]
[391951377,1761028244870,-1036.68,0.00023437,2]
[391951378,1761028244887,-150.0,0.00023492,4]
[391951379,1761028244896,-150.0,0.00023492,4]
[391951380,1761028244906,-172.25,0.00023562,2]
[391951381,1761028244915,-150.0,0.00023651,4]
[391951382,1761028244924,-150.0,0.00023704,4]
[391951383,1761028244934,-150.0,0.0002381,4]
[391951384,1761028244943,-444.05,0.00023836,2]
[391951385,1761028244954,-172.25,0.00023836,2]
[391951386,1761028244963,-150.0,0.00023873,4]
[391951387,1761028244972,-150.0,0.00023969,4]
[391951388,1761028244982,-1036.68,0.00024126,2]
[391951389,1761028244991,-150.0,0.00024127,4]
[391951390,1761028245000,-150.0,0.00024127,4]
[391951391,1761028245010,-150.0,0.00024127,4]
[391951392,1761028245019,-150.0,0.00024127,4]
[391951393,1761028245029,-150.0,0.00024127,4]
[391951394,1761028245038,-925.18,0.00024251,2]
[391951395,1761028245048,-150.0,0.00024286,4]
[391951396,1761028245056,-2548.0,0.00024336,2]
[391951397,1761028245065,-170.76065944,0.00024372,2]
[391951398,1761028245074,-150.0,0.00024381,4]
[391951399,1761028245084,-573.236,0.00024411,2]
[391951400,1761028245093,-738.676,0.00024411,2]
[391951401,1761028245103,-225.414,0.00024411,2]
[391951402,1761028245112,-164.715855,0.00024412,7]
[391951403,1761028245122,-164.715855,0.00024412,7]
[391951404,1761028245131,-164.715855,0.00024412,7]
[391951405,1761028245140,-164.715864,0.00024412,7]
[391951406,1761028245150,-150.0,0.00024445,4]
[391951407,1761028245159,-150.0,0.00024551,4]
[391951408,1761028245168,-150.0,0.00024604,4]
[391951409,1761028245177,-863.780025,0.0002465,2]
[391951410,1761028245187,-197.085649,0.0002465,2]
[391951411,1761028245196,-713.007043,0.0002465,2]
[391951412,1761028245206,-196.757958,0.0002465,2]
[391951413,1761028245215,-2561.684748,0.0002465,2]
[391951414,1761028245224,-391.47,0.00024658,2]
[391951415,1761028245233,-151.0,0.00024658,7]
[391951416,1761028245243,-151.0,0.00024658,7]
[391951417,1761028245252,-159.414309,0.00024658,7]
[391951418,1761028245260,-153.549231,0.00024658,7]
[391951419,1761028245270,-151.0,0.00024658,7]
[391951420,1761028245281,-151.0,0.00024658,7]
[391951421,1761028245292,-151.0,0.00024658,7]
[391951422,1761028245303,-235.634865,0.00024658,7]
[391951423,1761028245314,-150.0,0.00024762,4]
[391951424,1761028245323,-150.0,0.00024762,4]
[391951425,1761028245334,-500.0,0.00024799,2]
[391951426,1761028245344,-151.0,0.000248,7]
[391951427,1761028245353,-267595.862444,0.000248,3]
[391951428,1761028245362,-1036.68,0.00024816,2]